[Event "November 21 Late 2023"]
[Site "https://www.chess.com"]
[Date "2023.11.21"]
[Round "1"]
[White "Maltsevskaya, Aleksandra"]
[Black "Hoffmann, Asa"]
[Result "1-0"]
[Board "107"]
[TimeControl "180+1"]
[WhiteFideId "24174041"]
[BlackFideId "2001470"]
[WhiteElo "2296"]
[BlackElo "2117"]
[WhiteTeam "POL"]
[BlackTeam "USA"]
[WhiteClock "0:00:17"]
[BlackClock "0:00:10"]

1. Nf3 {[%clk 0:02:27]}  d6 {[%clk 0:02:57]} 2. g3 {[%clk 0:02:26]}  e5 {[%clk 0:02:56]} 3. Bg2 {[%clk 0:02:26]}  Nf6 {[%clk 0:02:56]} 4. d3 {[%clk 0:02:25]}  Nc6 {[%clk 0:02:55]} 5. O-O {[%clk 0:02:26]}  Be7 {[%clk 0:02:55]} 6. Nbd2 {[%clk 0:02:26]}  h6 {[%clk 0:02:54]} 7. e4 {[%clk 0:02:25]}  Be6 {[%clk 0:02:54]} 8. a3 {[%clk 0:02:18]}  a5 {[%clk 0:02:51]} 9. b3 {[%clk 0:02:14]}  Qd7 {[%clk 0:02:51]} 10. Nc4 {[%clk 0:02:14]}  Bh3 {[%clk 0:02:49]} 11. Bd2 {[%clk 0:02:10]}  O-O {[%clk 0:02:48]} 12. Nh4 {[%clk 0:02:09]}  Bxg2 {[%clk 0:02:43]} 13. Kxg2 {[%clk 0:02:10]}  d5 {[%clk 0:02:41]} 14. exd5 {[%clk 0:02:07]}  Qxd5+ {[%clk 0:02:35]} 15. Qf3 {[%clk 0:02:06]}  e4 {[%clk 0:02:32]} 16. dxe4 {[%clk 0:02:04]}  Nxe4 {[%clk 0:02:32]} 17. Nf5 {[%clk 0:01:57]}  Bf6 {[%clk 0:02:21]} 18. Rad1 {[%clk 0:01:35]}  Rad8 {[%clk 0:01:58]} 19. Bb4 {[%clk 0:01:09]}  Qxd1 {[%clk 0:01:45]} 20. Rxd1 {[%clk 0:01:08]}  Ng5 {[%clk 0:01:45]} 21. Rxd8 {[%clk 0:01:04]}  Rxd8 {[%clk 0:01:35]} 22. Qg4 {[%clk 0:01:01]}  axb4 {[%clk 0:01:33]} 23. axb4 {[%clk 0:01:00]}  b5 {[%clk 0:01:26]} 24. h4 {[%clk 0:00:52]}  Ne6 {[%clk 0:01:10]} 25. Nce3 {[%clk 0:00:45]}  Ne5 {[%clk 0:01:09]} 26. Nxh6+ {[%clk 0:00:36]}  Kf8 {[%clk 0:01:09]} 27. Qf5 {[%clk 0:00:36]}  Nd4 {[%clk 0:00:54]} 28. Qh7 {[%clk 0:00:28]}  gxh6 {[%clk 0:00:52]} 29. Qxh6+ {[%clk 0:00:28]}  Bg7 {[%clk 0:00:48]} 30. Qh7 {[%clk 0:00:27]}  Rd6 {[%clk 0:00:41]} 31. Qe4 {[%clk 0:00:23]}  Ng6 {[%clk 0:00:28]} 32. h5 {[%clk 0:00:20]}  Ne7 {[%clk 0:00:26]} 33. Qa8+ {[%clk 0:00:19]}  Nc8 {[%clk 0:00:23]} 34. Qxc8+ {[%clk 0:00:19]}  Ke7 {[%clk 0:00:23]} 35. Qxc7+ {[%clk 0:00:19]}  Rd7 {[%clk 0:00:23]} 36. Qc5+ {[%clk 0:00:19]}  Ke8 {[%clk 0:00:22]} 37. Qg5 {[%clk 0:00:17]}  Bf8 {[%clk 0:00:21]} 38. h6 {[%clk 0:00:17]}  Ne6 {[%clk 0:00:20]} 39. Qg8 {[%clk 0:00:16]}  Ke7 {[%clk 0:00:19]} 40. h7 {[%clk 0:00:16]}  Bg7 {[%clk 0:00:19]} 41. Nf5+ {[%clk 0:00:16]}  Kf6 {[%clk 0:00:18]} 42. Nxg7 {[%clk 0:00:17]}  Nxg7 {[%clk 0:00:17]} 43. h8=Q {[%clk 0:00:17]}  Ke5 {[%clk 0:00:10]} 44. Qhxg7+ {[%clk 0:00:17]} 1-0

[Event "November 21 Late 2023"]
[Site "https://www.chess.com"]
[Date "2023.11.21"]
[Round "1"]
[White "Feng, Eric"]
[Black "Rieger, Robert"]
[Result "1-0"]
[Board "109"]
[TimeControl "180+1"]
[WhiteFideId "30952590"]
[BlackFideId "1625527"]
[WhiteElo "1785"]
[BlackElo "2250"]
[WhiteTeam "USA"]
[BlackTeam "AUT"]
[WhiteClock "0:01:03"]
[BlackClock "0:00:20"]

1. d4 {[%clk 0:02:54]}  d5 {[%clk 0:02:53]} 2. c4 {[%clk 0:02:53]}  c6 {[%clk 0:02:53]} 3. cxd5 {[%clk 0:02:52]}  cxd5 {[%clk 0:02:54]} 4. Bf4 {[%clk 0:02:52]}  Nc6 {[%clk 0:02:54]} 5. e3 {[%clk 0:02:51]}  a6 {[%clk 0:02:54]} 6. Nc3 {[%clk 0:02:49]}  Nf6 {[%clk 0:02:54]} 7. Be2 {[%clk 0:02:48]}  Qb6 {[%clk 0:02:50]} 8. Nf3 {[%clk 0:02:29]}  Qxb2 {[%clk 0:02:33]} 9. Rc1 {[%clk 0:02:28]}  Bf5 {[%clk 0:02:27]} 10. O-O {[%clk 0:02:28]}  e6 {[%clk 0:02:27]} 11. Nh4 {[%clk 0:02:25]}  Bg6 {[%clk 0:02:25]} 12. Na4 {[%clk 0:02:23]}  Qb4 {[%clk 0:02:11]} 13. Nxg6 {[%clk 0:02:22]}  hxg6 {[%clk 0:02:11]} 14. Rb1 {[%clk 0:02:23]}  Qa5 {[%clk 0:01:50]} 15. Rxb7 {[%clk 0:02:22]}  Ne4 {[%clk 0:01:00]} 16. f3 {[%clk 0:01:08]}  Nd6 {[%clk 0:00:45]} 17. Rb6 {[%clk 0:01:03]}  O-O-O {[%clk 0:00:20]} 1-0

[Event "November 21 Late 2023"]
[Site "https://www.chess.com"]
[Date "2023.11.21"]
[Round "1"]
[White "Ramadoss, Ashokkumar"]
[Black "Principe, Gerson"]
[Result "0-1"]
[Board "110"]
[TimeControl "180+1"]
[WhiteFideId "5040990"]
[BlackFideId "3804550"]
[WhiteElo "2337"]
[BlackElo "2186"]
[WhiteTeam "IND"]
[BlackTeam "PER"]
[WhiteClock "0:00:08"]
[BlackClock "0:00:35"]

1. Nf3 {[%clk 0:03:00]}  d5 {[%clk 0:03:00]} 2. c4 {[%clk 0:03:01]}  e6 {[%clk 0:03:00]} 3. Qc2 {[%clk 0:03:01]}  Nf6 {[%clk 0:03:00]} 4. d4 {[%clk 0:03:01]}  Be7 {[%clk 0:03:01]} 5. cxd5 {[%clk 0:03:01]}  exd5 {[%clk 0:03:00]} 6. Bg5 {[%clk 0:03:02]}  O-O {[%clk 0:02:59]} 7. e3 {[%clk 0:03:02]}  Be6 {[%clk 0:02:56]} 8. Bd3 {[%clk 0:03:02]}  Nbd7 {[%clk 0:02:56]} 9. Nc3 {[%clk 0:03:02]}  Rc8 {[%clk 0:02:53]} 10. O-O {[%clk 0:02:54]}  h6 {[%clk 0:02:53]} 11. Bh4 {[%clk 0:02:54]}  c5 {[%clk 0:02:52]} 12. Rad1 {[%clk 0:02:53]}  a6 {[%clk 0:02:42]} 13. Bf5 {[%clk 0:02:48]}  b5 {[%clk 0:02:21]} 14. Bxe6 {[%clk 0:02:32]}  fxe6 {[%clk 0:02:21]} 15. Qg6 {[%clk 0:02:27]}  Qe8 {[%clk 0:02:19]} 16. Qxe8 {[%clk 0:02:12]}  Rfxe8 {[%clk 0:02:20]} 17. Ne5 {[%clk 0:02:00]}  Nxe5 {[%clk 0:02:17]} 18. dxe5 {[%clk 0:02:01]}  Nd7 {[%clk 0:02:03]} 19. Bg3 {[%clk 0:01:46]}  Nb6 {[%clk 0:02:00]} 20. e4 {[%clk 0:01:29]}  d4 {[%clk 0:01:58]} 21. Ne2 {[%clk 0:01:30]}  Red8 {[%clk 0:01:49]} 22. b3 {[%clk 0:01:12]}  Rc6 {[%clk 0:01:37]} 23. Rd2 {[%clk 0:01:06]}  d3 {[%clk 0:01:35]} 24. Rfd1 {[%clk 0:00:29]}  c4 {[%clk 0:01:13]} 25. bxc4 {[%clk 0:00:26]}  bxc4 {[%clk 0:01:14]} 26. Nc1 {[%clk 0:00:25]}  Bb4 {[%clk 0:01:11]} 27. Rb2 {[%clk 0:00:25]}  Ba3 {[%clk 0:00:56]} 28. Rb1 {[%clk 0:00:25]}  Bxc1 {[%clk 0:00:55]} 29. Rbxc1 {[%clk 0:00:26]}  c3 {[%clk 0:00:55]} 30. f3 {[%clk 0:00:21]}  c2 {[%clk 0:00:44]} 31. Rd2 {[%clk 0:00:21]}  Kf7 {[%clk 0:00:39]} 32. Bf2 {[%clk 0:00:19]}  Nc4 {[%clk 0:00:36]} 33. Rcxc2 {[%clk 0:00:08]}  dxc2 {[%clk 0:00:35]} 0-1

[Event "November 21 Late 2023"]
[Site "https://www.chess.com"]
[Date "2023.11.21"]
[Round "1"]
[White "Golubev, Mikhail"]
[Black "Jarocka, Liwia"]
[Result "1-0"]
[Board "111"]
[TimeControl "180+1"]
[WhiteFideId "14100983"]
[BlackFideId "21807558"]
[WhiteElo "2352"]
[BlackElo "2001"]
[WhiteTeam "UKR"]
[BlackTeam "POL"]
[WhiteClock "0:00:05"]
[BlackClock "0:00:00"]

1. e4 {[%clk 0:03:00]}  c5 {[%clk 0:02:56]} 2. Nf3 {[%clk 0:03:00]}  Nc6 {[%clk 0:02:55]} 3. Nc3 {[%clk 0:02:59]}  Nf6 {[%clk 0:02:54]} 4. Bb5 {[%clk 0:02:56]}  Nd4 {[%clk 0:02:53]} 5. e5 {[%clk 0:02:55]}  Nxb5 {[%clk 0:02:47]} 6. Nxb5 {[%clk 0:02:55]}  Nd5 {[%clk 0:02:46]} 7. Ng5 {[%clk 0:02:50]}  e6 {[%clk 0:02:37]} 8. Ne4 {[%clk 0:02:47]}  f5 {[%clk 0:02:08]} 9. Nbd6+ {[%clk 0:02:39]}  Bxd6 {[%clk 0:02:07]} 10. Nxd6+ {[%clk 0:02:36]}  Kf8 {[%clk 0:02:06]} 11. d4 {[%clk 0:02:09]}  cxd4 {[%clk 0:01:54]} 12. Qxd4 {[%clk 0:02:10]}  b6 {[%clk 0:01:47]} 13. O-O {[%clk 0:02:01]}  Ba6 {[%clk 0:01:41]} 14. Re1 {[%clk 0:01:54]}  h6 {[%clk 0:01:00]} 15. Nxf5 {[%clk 0:01:37]}  Rc8 {[%clk 0:00:57]} 16. Nd6 {[%clk 0:01:17]}  Rxc2 {[%clk 0:00:22]} 17. Qa4 {[%clk 0:01:08]}  Bd3 {[%clk 0:00:21]} 18. Rd1 {[%clk 0:00:33]}  Bg6 {[%clk 0:00:20]} 19. h4 {[%clk 0:00:23]}  Kg8 {[%clk 0:00:19]} 20. h5 {[%clk 0:00:21]}  Bh7 {[%clk 0:00:19]} 21. Qg4 {[%clk 0:00:16]}  Qf8 {[%clk 0:00:19]} 22. Rf1 {[%clk 0:00:13]}  Bf5 {[%clk 0:00:15]} 23. Nxf5 {[%clk 0:00:11]}  Qxf5 {[%clk 0:00:16]} 24. Qxf5 {[%clk 0:00:11]}  exf5 {[%clk 0:00:17]} 25. Rd1 {[%clk 0:00:11]}  Rc5 {[%clk 0:00:12]} 26. b4 {[%clk 0:00:09]}  Nxb4 {[%clk 0:00:09]} 27. Rxd7 {[%clk 0:00:08]}  Kh7 {[%clk 0:00:08]} 28. Bb2 {[%clk 0:00:08]}  Rhc8 {[%clk 0:00:07]} 29. e6 {[%clk 0:00:08]}  R5c7 {[%clk 0:00:05]} 30. Rad1 {[%clk 0:00:07]}  Nc6 {[%clk 0:00:01]} 31. Kh2 {[%clk 0:00:06]}  Ne5 {[%clk 0:00:00]} 32. Rxc7 {[%clk 0:00:05]} 1-0

[Event "November 21 Late 2023"]
[Site "https://www.chess.com"]
[Date "2023.11.21"]
[Round "1"]
[White "Ballester Llagaria, Luis Eduardo"]
[Black "patzersame"]
[Result "1-0"]
[Board "113"]
[TimeControl "180+1"]
[WhiteFideId "2297620"]
[WhiteElo "2344"]
[BlackElo "2331"]
[WhiteTeam "ESP"]
[WhiteClock "0:00:19"]
[BlackClock "0:00:00"]

1. e4 {[%clk 0:03:00]}  e5 {[%clk 0:03:00]} 2. Nf3 {[%clk 0:02:45]}  Nf6 {[%clk 0:02:59]} 3. d4 {[%clk 0:02:17]}  Nxe4 {[%clk 0:02:58]} 4. Bd3 {[%clk 0:02:06]}  d5 {[%clk 0:02:58]} 5. Nxe5 {[%clk 0:02:05]}  Bd6 {[%clk 0:02:58]} 6. O-O {[%clk 0:02:03]}  O-O {[%clk 0:02:58]} 7. Nc3 {[%clk 0:02:03]}  Nxc3 {[%clk 0:02:55]} 8. bxc3 {[%clk 0:02:04]}  Qh4 {[%clk 0:02:53]} 9. f4 {[%clk 0:02:02]}  c5 {[%clk 0:02:51]} 10. f5 {[%clk 0:01:57]}  cxd4 {[%clk 0:02:48]} 11. Rf4 {[%clk 0:01:50]}  Qf6 {[%clk 0:02:43]} 12. Ng4 {[%clk 0:01:46]}  Qd8 {[%clk 0:02:35]} 13. f6 {[%clk 0:01:38]}  Bxf4 {[%clk 0:02:33]} 14. Bxf4 {[%clk 0:01:39]}  Bxg4 {[%clk 0:02:32]} 15. Qxg4 {[%clk 0:01:40]}  Qxf6 {[%clk 0:02:32]} 16. Rf1 {[%clk 0:01:30]}  Nc6 {[%clk 0:02:28]} 17. Bg5 {[%clk 0:01:27]}  Qe5 {[%clk 0:02:17]} 18. Bf6 {[%clk 0:01:23]}  Qe3+ {[%clk 0:02:15]} 19. Kh1 {[%clk 0:01:24]}  Qh6 {[%clk 0:01:48]} 20. Bg5 {[%clk 0:01:21]}  Qe6 {[%clk 0:01:43]} 21. Bf5 {[%clk 0:01:20]}  Qd6 {[%clk 0:01:42]} 22. Bf4 {[%clk 0:01:12]}  Qf6 {[%clk 0:01:24]} 23. Bg5 {[%clk 0:01:12]}  Qd6 {[%clk 0:01:15]} 24. Qh4 {[%clk 0:00:59]}  h6 {[%clk 0:01:10]} 25. Bf4 {[%clk 0:00:54]}  Qf6 {[%clk 0:01:10]} 26. Qxf6 {[%clk 0:00:52]}  gxf6 {[%clk 0:01:11]} 27. Bxh6 {[%clk 0:00:53]}  Rfe8 {[%clk 0:01:08]} 28. h4 {[%clk 0:00:41]}  Re3 {[%clk 0:00:38]} 29. cxd4 {[%clk 0:00:37]}  Rae8 {[%clk 0:00:33]} 30. Bxe3 {[%clk 0:00:37]}  Rxe3 {[%clk 0:00:34]} 31. Rf4 {[%clk 0:00:37]}  Ra3 {[%clk 0:00:26]} 32. Rg4+ {[%clk 0:00:30]}  Kf8 {[%clk 0:00:26]} 33. h5 {[%clk 0:00:31]}  Ne7 {[%clk 0:00:11]} 34. h6 {[%clk 0:00:26]}  Nxf5 {[%clk 0:00:02]} 35. h7 {[%clk 0:00:22]}  Rxa2 {[%clk 0:00:02]} 36. h8=Q+ {[%clk 0:00:20]}  Ke7 {[%clk 0:00:03]} 37. Qb8 {[%clk 0:00:18]}  Nd6 {[%clk 0:00:02]} 38. Qc7+ {[%clk 0:00:17]}  Ke6 {[%clk 0:00:02]} 39. Rf4 {[%clk 0:00:14]}  Ne4 {[%clk 0:00:02]} 40. Rxe4+ {[%clk 0:00:14]}  dxe4 {[%clk 0:00:03]} 41. Qxb7 {[%clk 0:00:14]}  Kf5 {[%clk 0:00:02]} 42. Qd5+ {[%clk 0:00:14]}  Kf4 {[%clk 0:00:02]} 43. Qxa2 {[%clk 0:00:15]}  e3 {[%clk 0:00:02]} 44. Qb1 {[%clk 0:00:16]}  Kg3 {[%clk 0:00:02]} 45. Qe1+ {[%clk 0:00:17]}  Kf4 {[%clk 0:00:02]} 46. d5 {[%clk 0:00:17]}  Kf5 {[%clk 0:00:03]} 47. d6 {[%clk 0:00:18]}  Ke6 {[%clk 0:00:03]} 48. Qxe3+ {[%clk 0:00:18]}  Kxd6 {[%clk 0:00:03]} 49. Qb3 {[%clk 0:00:19]}  Kc5 {[%clk 0:00:04]} 50. Qxf7 {[%clk 0:00:19]}  Kb6 {[%clk 0:00:00]} 51. Qxf6+ {[%clk 0:00:19]} 1-0

[Event "November 21 Late 2023"]
[Site "https://www.chess.com"]
[Date "2023.11.21"]
[Round "1"]
[White "Banzea, Alexandru-Bogdan"]
[Black "Maect19"]
[Result "1-0"]
[Board "115"]
[TimeControl "180+1"]
[WhiteFideId "1232622"]
[WhiteElo "2294"]
[BlackElo "2329"]
[WhiteTeam "ROU"]
[WhiteClock "0:01:52"]
[BlackClock "0:01:31"]

1. d4 {[%clk 0:02:56]}  d5 {[%clk 0:02:58]} 2. Nc3 {[%clk 0:02:56]}  Nf6 {[%clk 0:02:54]} 3. Bf4 {[%clk 0:02:57]}  c5 {[%clk 0:02:48]} 4. e3 {[%clk 0:02:53]}  e6 {[%clk 0:02:44]} 5. Nb5 {[%clk 0:02:53]}  Na6 {[%clk 0:02:44]} 6. c3 {[%clk 0:02:53]}  Be7 {[%clk 0:02:40]} 7. a4 {[%clk 0:02:54]}  O-O {[%clk 0:02:39]} 8. Bd3 {[%clk 0:02:55]}  Bd7 {[%clk 0:02:36]} 9. Nf3 {[%clk 0:02:55]}  Rc8 {[%clk 0:02:31]} 10. Ne5 {[%clk 0:02:56]}  Ra8 {[%clk 0:02:20]} 11. h4 {[%clk 0:02:56]}  Be8 {[%clk 0:02:20]} 12. g4 {[%clk 0:02:51]}  Nd7 {[%clk 0:02:20]} 13. g5 {[%clk 0:02:52]}  Nxe5 {[%clk 0:02:19]} 14. Bxe5 {[%clk 0:02:47]}  Bxb5 {[%clk 0:02:19]} 15. axb5 {[%clk 0:02:46]}  Nc7 {[%clk 0:02:19]} 16. Qh5 {[%clk 0:02:31]}  g6 {[%clk 0:02:15]} 17. Qh6 {[%clk 0:02:10]}  f6 {[%clk 0:02:14]} 18. h5 {[%clk 0:02:00]}  Kf7 {[%clk 0:01:46]} 19. gxf6 {[%clk 0:01:50]}  Bxf6 {[%clk 0:01:38]} 20. Qxh7+ {[%clk 0:01:51]}  Ke8 {[%clk 0:01:31]} 21. Bxg6+ {[%clk 0:01:52]} 1-0

[Event "November 21 Late 2023"]
[Site "https://www.chess.com"]
[Date "2023.11.21"]
[Round "1"]
[White "Gerbelli Neto, Eduardo"]
[Black "Gimenez Aguirre, Alejo Ismael"]
[Result "0-1"]
[Board "116"]
[TimeControl "180+1"]
[WhiteFideId "2103281"]
[BlackFideId "32041667"]
[WhiteElo "2178"]
[BlackElo "2165"]
[WhiteTeam "BRA"]
[BlackTeam "ARG"]
[WhiteClock "0:00:06"]
[BlackClock "0:00:51"]

1. e4 {[%clk 0:03:00]}  c5 {[%clk 0:02:54]} 2. Nc3 {[%clk 0:03:00]}  g6 {[%clk 0:02:54]} 3. f4 {[%clk 0:03:01]}  Bg7 {[%clk 0:02:54]} 4. Nf3 {[%clk 0:03:02]}  e6 {[%clk 0:02:54]} 5. Bc4 {[%clk 0:03:01]}  Nc6 {[%clk 0:02:54]} 6. f5 {[%clk 0:02:59]}  gxf5 {[%clk 0:02:54]} 7. d3 {[%clk 0:02:59]}  d5 {[%clk 0:02:55]} 8. exd5 {[%clk 0:02:58]}  exd5 {[%clk 0:02:55]} 9. Nxd5 {[%clk 0:02:57]}  Be6 {[%clk 0:02:56]} 10. Qe2 {[%clk 0:02:54]}  Nge7 {[%clk 0:02:53]} 11. Nxe7 {[%clk 0:02:50]}  Qxe7 {[%clk 0:02:49]} 12. Bb3 {[%clk 0:02:34]}  O-O-O {[%clk 0:02:20]} 13. O-O {[%clk 0:02:20]}  Nd4 {[%clk 0:02:07]} 14. Qf2 {[%clk 0:02:04]}  Kb8 {[%clk 0:02:02]} 15. Be3 {[%clk 0:01:44]}  Qc7 {[%clk 0:01:55]} 16. Nxd4 {[%clk 0:01:35]}  cxd4 {[%clk 0:01:55]} 17. Bf4 {[%clk 0:01:32]}  Be5 {[%clk 0:01:54]} 18. Rae1 {[%clk 0:01:30]}  Bxf4 {[%clk 0:01:51]} 19. Qxf4 {[%clk 0:01:31]}  Rhe8 {[%clk 0:01:49]} 20. Qxc7+ {[%clk 0:01:10]}  Kxc7 {[%clk 0:01:48]} 21. Re5 {[%clk 0:01:00]}  Kd6 {[%clk 0:01:47]} 22. Rb5 {[%clk 0:00:55]}  b6 {[%clk 0:01:42]} 23. a4 {[%clk 0:00:51]}  Rg8 {[%clk 0:01:37]} 24. Re1 {[%clk 0:00:46]}  Rg4 {[%clk 0:01:30]} 25. Kf2 {[%clk 0:00:36]}  Rdg8 {[%clk 0:01:30]} 26. g3 {[%clk 0:00:36]}  f4 {[%clk 0:01:30]} 27. Re4 {[%clk 0:00:23]}  fxg3+ {[%clk 0:01:29]} 28. hxg3 {[%clk 0:00:24]}  Rxe4 {[%clk 0:01:29]} 29. dxe4 {[%clk 0:00:24]}  Bxb3 {[%clk 0:01:27]} 30. Rxb3 {[%clk 0:00:23]}  Rc8 {[%clk 0:01:23]} 31. c3 {[%clk 0:00:20]}  Ke5 {[%clk 0:01:21]} 32. Kf3 {[%clk 0:00:19]}  Rc6 {[%clk 0:01:14]} 33. Rb5+ {[%clk 0:00:18]}  Rc5 {[%clk 0:01:15]} 34. Rb3 {[%clk 0:00:11]}  Ra5 {[%clk 0:01:10]} 35. cxd4+ {[%clk 0:00:11]}  Kxd4 {[%clk 0:01:10]} 36. Rb4+ {[%clk 0:00:06]}  Kc5 {[%clk 0:01:10]} 37. Rb3 {[%clk 0:00:03]}  Rxa4 {[%clk 0:01:11]} 38. Rc3+ {[%clk 0:00:04]}  Rc4 {[%clk 0:01:11]} 39. Rd3 {[%clk 0:00:04]}  Rd4 {[%clk 0:01:08]} 40. Rc3+ {[%clk 0:00:04]}  Kd6 {[%clk 0:01:08]} 41. b3 {[%clk 0:00:04]}  a5 {[%clk 0:01:07]} 42. Ke3 {[%clk 0:00:05]}  Rd1 {[%clk 0:01:06]} 43. Rc8 {[%clk 0:00:03]}  Ke7 {[%clk 0:01:07]} 44. Rc7+ {[%clk 0:00:03]}  Rd7 {[%clk 0:01:07]} 45. Rc6 {[%clk 0:00:04]}  Rd6 {[%clk 0:01:08]} 46. Rc7+ {[%clk 0:00:04]}  Kf6 {[%clk 0:01:08]} 47. Rb7 {[%clk 0:00:05]}  Re6 {[%clk 0:01:07]} 48. Kf4 {[%clk 0:00:05]}  Kg6 {[%clk 0:01:07]} 49. e5 {[%clk 0:00:05]}  Rc6 {[%clk 0:01:07]} 50. Rd7 {[%clk 0:00:06]}  f6 {[%clk 0:01:04]} 51. Rd6 {[%clk 0:00:04]}  Rxd6 {[%clk 0:00:49]} 52. exd6 {[%clk 0:00:05]}  Kf7 {[%clk 0:00:49]} 53. Kf5 {[%clk 0:00:05]}  b5 {[%clk 0:00:50]} 54. d7 {[%clk 0:00:02]}  Ke7 {[%clk 0:00:50]} 55. d8=Q+ {[%clk 0:00:03]}  Kxd8 {[%clk 0:00:50]} 56. Kxf6 {[%clk 0:00:04]}  a4 {[%clk 0:00:51]} 57. bxa4 {[%clk 0:00:03]}  bxa4 {[%clk 0:00:52]} 58. Kg7 {[%clk 0:00:03]}  a3 {[%clk 0:00:52]} 59. Kxh7 {[%clk 0:00:04]}  a2 {[%clk 0:00:53]} 60. g4 {[%clk 0:00:05]}  a1=Q {[%clk 0:00:53]} 61. g5 {[%clk 0:00:06]}  Ke8 {[%clk 0:00:53]} 62. g6 {[%clk 0:00:06]}  Kf8 {[%clk 0:00:53]} 63. Kh6 {[%clk 0:00:06]}  Qg1 {[%clk 0:00:51]} 0-1

[Event "November 21 Late 2023"]
[Site "https://www.chess.com"]
[Date "2023.11.21"]
[Round "1"]
[White "Wadsworth, Matthew J"]
[Black "Biernacki, Mark"]
[Result "1-0"]
[Board "117"]
[TimeControl "180+1"]
[WhiteFideId "415804"]
[BlackFideId "2082322"]
[WhiteElo "2266"]
[BlackElo "1965"]
[WhiteTeam "ENG"]
[BlackTeam "USA"]
[WhiteClock "0:00:47"]
[BlackClock "0:00:03"]

1. e4 {[%clk 0:03:00]}  c6 {[%clk 0:02:59]} 2. d4 {[%clk 0:02:59]}  d5 {[%clk 0:03:00]} 3. e5 {[%clk 0:02:59]}  Bf5 {[%clk 0:03:01]} 4. h4 {[%clk 0:02:58]}  h5 {[%clk 0:02:59]} 5. Bd3 {[%clk 0:02:58]}  Bxd3 {[%clk 0:02:58]} 6. Qxd3 {[%clk 0:02:58]}  Qa5+ {[%clk 0:02:57]} 7. Nd2 {[%clk 0:02:55]}  e6 {[%clk 0:02:57]} 8. Nf3 {[%clk 0:02:50]}  Qa6 {[%clk 0:02:56]} 9. c4 {[%clk 0:02:34]}  Nd7 {[%clk 0:02:56]} 10. O-O {[%clk 0:02:30]}  Bb4 {[%clk 0:02:56]} 11. Qc2 {[%clk 0:02:23]}  Ne7 {[%clk 0:02:50]} 12. c5 {[%clk 0:02:11]}  b6 {[%clk 0:02:51]} 13. Nb3 {[%clk 0:02:08]}  bxc5 {[%clk 0:02:40]} 14. dxc5 {[%clk 0:02:08]}  Nf5 {[%clk 0:02:09]} 15. a3 {[%clk 0:01:46]}  Ba5 {[%clk 0:02:05]} 16. Nbd4 {[%clk 0:01:46]}  Nxd4 {[%clk 0:02:03]} 17. Nxd4 {[%clk 0:01:47]}  Nxe5 {[%clk 0:01:17]} 18. Bf4 {[%clk 0:01:45]}  Ng6 {[%clk 0:01:15]} 19. Nxe6 {[%clk 0:01:41]}  Nxf4 {[%clk 0:01:07]} 20. Nxf4 {[%clk 0:01:40]}  O-O-O {[%clk 0:00:57]} 21. b4 {[%clk 0:01:19]}  Bc7 {[%clk 0:00:57]} 22. Qf5+ {[%clk 0:01:20]}  Rd7 {[%clk 0:00:57]} 23. Rfe1 {[%clk 0:01:18]}  Bxf4 {[%clk 0:00:47]} 24. Qxf4 {[%clk 0:01:15]}  Qd3 {[%clk 0:00:47]} 25. Re3 {[%clk 0:01:11]}  Qg6 {[%clk 0:00:47]} 26. Rae1 {[%clk 0:01:06]}  Rhd8 {[%clk 0:00:47]} 27. Re7 {[%clk 0:01:00]}  f6 {[%clk 0:00:38]} 28. R1e6 {[%clk 0:00:54]}  Kb7 {[%clk 0:00:32]} 29. Qd6 {[%clk 0:00:50]}  Qb1+ {[%clk 0:00:04]} 30. Kh2 {[%clk 0:00:49]}  Rxe7 {[%clk 0:00:02]} 31. Rxe7+ {[%clk 0:00:47]}  Ka6 {[%clk 0:00:03]} 32. Qxc6# {[%clk 0:00:47]} 1-0

[Event "November 21 Late 2023"]
[Site "https://www.chess.com"]
[Date "2023.11.21"]
[Round "1"]
[White "Cardozo Munar, Carlos Eduardo"]
[Black "Olsen, Filip Boe"]
[Result "0-1"]
[Board "120"]
[TimeControl "180+1"]
[WhiteFideId "4409477"]
[BlackFideId "1440640"]
[WhiteElo "2067"]
[BlackElo "2322"]
[WhiteTeam "COL"]
[BlackTeam "DEN"]
[WhiteClock "0:01:14"]
[BlackClock "0:02:18"]

1. d4 {[%clk 0:02:59]}  Nf6 {[%clk 0:02:59]} 2. Bg5 {[%clk 0:02:59]}  d5 {[%clk 0:02:58]} 3. Bxf6 {[%clk 0:02:59]}  exf6 {[%clk 0:02:58]} 4. g3 {[%clk 0:03:00]}  c6 {[%clk 0:02:58]} 5. Bg2 {[%clk 0:03:00]}  Bf5 {[%clk 0:02:58]} 6. Nd2 {[%clk 0:03:00]}  Nd7 {[%clk 0:02:58]} 7. e3 {[%clk 0:03:00]}  Bd6 {[%clk 0:02:58]} 8. Ne2 {[%clk 0:03:01]}  O-O {[%clk 0:02:58]} 9. O-O {[%clk 0:03:01]}  Re8 {[%clk 0:02:56]} 10. c4 {[%clk 0:03:01]}  dxc4 {[%clk 0:02:53]} 11. Nxc4 {[%clk 0:03:01]}  Bf8 {[%clk 0:02:54]} 12. Nc3 {[%clk 0:02:50]}  Nb6 {[%clk 0:02:54]} 13. Na5 {[%clk 0:02:41]}  Qd7 {[%clk 0:02:50]} 14. e4 {[%clk 0:02:40]}  Bg6 {[%clk 0:02:50]} 15. Re1 {[%clk 0:02:39]}  Rad8 {[%clk 0:02:50]} 16. e5 {[%clk 0:02:28]}  fxe5 {[%clk 0:02:45]} 17. dxe5 {[%clk 0:02:27]}  Qc7 {[%clk 0:02:45]} 18. Qb3 {[%clk 0:02:18]}  Nd7 {[%clk 0:02:36]} 19. Nc4 {[%clk 0:01:53]}  Nc5 {[%clk 0:02:25]} 20. Qa3 {[%clk 0:01:35]}  Nd3 {[%clk 0:02:23]} 21. Qxa7 {[%clk 0:01:35]}  Bc5 {[%clk 0:02:22]} 22. Qa4 {[%clk 0:01:28]}  Bxf2+ {[%clk 0:02:20]} 23. Kh1 {[%clk 0:01:28]}  Bxe1 {[%clk 0:02:20]} 24. Nd6 {[%clk 0:01:14]}  Rxe5 {[%clk 0:02:18]} 0-1